{"text_format":"1","workbook":"xlsx","n_sheets":4,"sheets":["INFO","Explanation","Annex A,B types","Statistics"],"not_rendered":{"charts":2,"images":2,"macros":1,"external_links":0,"defined_names":7,"comments":0,"pivot_tables":0},"unopened":[],"bounds":{"document_bytes":16777216,"sheet_cells":100000,"rows_first":2000,"rows_last":500,"rows_between":2000,"halvings":0,"cell_chars":16384,"cell_head_chars":4096},"cells_cut":0,"cells_raw":0,"read":"whole","date_system":"1900"}

{"sheet":"INFO","index":0,"n_rows":45,"n_cols":3,"rows_kept":45,"cut":false,"hidden":false,"merged":[]}
[null,"Categorized overview of all Annex A/B choices in 10 selected EPB standards,"]
[]
[null,"This is a special product, prepared in collaboration "]
[null,"between the EPB Center and the U-CERT project"]
[null,"August 27, 2021"]
[]
[null,"EPB Center, the service center for information and technical support on the  set of standards on the energy performance of buildings"]
[null,"U-Cert Project - User-centred Energy Performance Assessment and Certification"]
[]
[]
[]
[]
[]
[null,"This special spreadsheet:"]
[]
[null,"Main related standard(s):","Ten selected EPB standards, see Explanation"]
[]
[null,"Spreadsheet created by:","Dick van Dijk (EPB Center expert)"]
[null,null,"with input from other EPB Center and U-CERT team members"]
[]
[null,"Contact:","https://epb.center/contact/"]
[]
[null,"Date:","2021-08-27"]
[null,null,"Replaces file: --    Date: --"]
[]
[null,"Detailed info:","See sheet \"Explanation\""]
[]
[null,"Spreadsheet","Categorized overview of all Annex A/B choices in 10 selected EPB standards,"]
[null,null,"NOTE: For the series of spreadsheets to support the implementation and use of the set of EPB standards, see below"]
[]
[null,"Acknowledgement:","This EPB spreadsheet has been produced and reviewed with the help of several experts active in the EPB Center and/or in the U-CERT project"]
[null,null,"The U-CERT Consortium would like to acknowledge the financial support of the European Commission under the H2020 programme. This project has received funding from the European Union’s Horizon 2020 research and innovation programme under grant agreement number 839937."]
[]
[null,"Disclaimer:","Although thisspreadsheet has been developed with care, neither the authors or contributors warrant that the content of this spreadsheet is free of errors. The EPB Center and U-CERT expressly disclaim any liability or responsibility arising from use of this spreadsheet, or any consequences thereof. Any responsibility arising from the use of this spreadsheet lies with the user."]
[null,null,"The information and views set out in this document are those of the author(s) and do not necessarily reflect the official opinion of the European Union. Neither the European Union institutions and bodies nor any person acting on their behalf may be held responsible for the use which may be made of the information contained therein."]
[]
[null,"Terms of use:","The user is not allowed to redistribute a modified version of this spreadsheet."]
[null,null,"The author(s) would appreciate your feed back on the spreadsheet (see Contact above)"]
[]
[null,"The series of spreadsheets to support the implementation and use of the set of EPB standards:"]
[null,"See:","EPB Center/documents - spreadsheets"]
[null,"Main purpose:","The main purpose of the series of EPB spreadsheets is to support the implementation and use of the standards."]
[null,null,"They aim to demonstrate the validity of the calculation procedures and the required input and provided output data defined in the standard."]
[null,null,"They support the expert user of the standards, in particular those who want to review the content of the standard and those who want to translate the standard into software, to understand the correct interpretation of the formulae and calculation steps in the standard, or e.g. to explore the sensitivity for variations in input values."]
[null,null,"Some spreadsheets have been further developed to include more advanced features or to become more user friendly (see sheet \"Explanation\")"]

{"sheet":"Explanation","index":1,"n_rows":87,"n_cols":5,"rows_kept":87,"cut":false,"hidden":false,"merged":[[78,10,82,10],[29,2,29,3]]}
[]
[null,"Selected EPB standards:","EN ISO 52000-1","EN ISO 52000-1:2017, Energy performance of buildings — Overarching EPB assessment — Part 1: General framework and procedures"]
[null,null,"EN ISO 52003-1","ISO 52003-1:2017, Energy performance of buildings — Indicators, requirements, ratings and certificates — Part 1: General aspects and application to the overall energy performance"]
[null,null,"EN ISO 52010-1","EN ISO 52010-1:2017, Energy performance of buildings — External climatic conditions — Part 1: Conversion of climatic data for energy calculations"]
[null,null,"EN 16798-1","EN 16798-1:2019, Energy performance of buildings — Ventilation of buildings  — Part 1: Indoor environmental input parameters for design and assessment of energy performance of buildings addressing indoor air quality, thermal environment, lighting and acoustics (Module M1–6)"]
[null,null,"EN ISO 52016-1","EN ISO 52016-1:2017, Energy performance of buildings — Energy needs for heating and cooling, internal temperatures and sensible and latent heat loads — Part 1: Calculation procedures"]
[null,null,"EN ISO 52018-1","EN ISO 52018-1:2017, Energy performance of buildings — Indicators for partial EPB requirements related to thermal energy balance and fabric features — Part 1: Overview of options"]
[null,null,"ISO/FDIS 52032-1 (draft, Feb. 2021)","Energy performance of buildings — Energy requirements and efficiencies of heating, cooling and DHW distribution systems — Part 1: Calculation procedures"]
[null,null,"EN 15316-4-2","Energy performance of buildings - Method for calculation of system energy requirements and system efficiencies - Part 4-2: Space heating generation systems, heat pump systems, Module M3-8-2, M8-8-2"]
[null,null,"prEN 15316-4-2 (draft, March 2021)","Energy performance of buildings — Method for calculation of system energy requirements and system efficiencies — Part 4-2: Space heating generation systems, heat pump systems, Module M3-8-2, M8-8-2"]
[null,null,"EN 16798-7","EN 16798-7, Energy performance of buildings – Ventilation for buildings – Part 7: Calculation methods for the determination of air flow rates in buildings including infiltration (Module M5–5)"]
[null,null,"EN 16798-5-1","EN 16798-5-1, Energy performance of buildings – Ventilation for buildings – Part 5–1: Calculation methods for energy requirements of ventilation and air conditioning systems (Modules M5–6, M5–8, M6–5, M6–8, M7–5, M7–8) – Method 1: Distribution and generation"]
[]
[null,"Responsible in ISO and/or CEN:",null,"Various committees, depending on the scope of the standard"]
[]
[]
[null,"Convention:","Font colors and/or cell shading on calculation sheet(s):"]
[null,null,"red font","input"]
[null,null,"blue font","calculated"]
[null,null,"green font","fixed"]
[null,null,"black font","set up, various"]
[]
[null,"Run:","See sheet \"Annex A/B types\""]
[]
[null,"Status:","Published"]
[]
[null,"Main features:","Overview of all (in total 237) Annex A/B choices in each of the selected EPB standards"]
[null,null,"with each choice categorized as follows:"]
[]
[null,null,"Type of choice *)",null,"Explanation"]
[null,null,"A","Important factor for the calculated energy performance","incl. pre-processing (e.g.zoning) and/or indoor/outdoor conditions"]
[null,null,"B","Critical for calculation tool development","Significant impact on the configuration of software tool that is based on the calculation procedures"]
[null,null,"C","Less crucial detail for calculation methodology","incl. pre-processing (e.g. zoning) and/or indoor/outdoor conditions"]
[null,null,"D","Policy choice"]
[null,null,"E","Categorization ","of buildings, spaces, services, etc."]
[null,null,"F","Post-processing","Indicators, rating, ..; indicators may also be important factor!"]
[null,null,"G","References to other (EPB) standards","If one or more EPB standards are replaced by other references it can have serious impact on the methodology"]
[null,null,"H","Measured energy performance"]
[null,null,"I","Other","No (direct) impact on EP calculation methodology"]
[null,null,"*): More than one choice possible. But category A excludes C and vice versa. Categories E to I: only single choice"]
[]
[null,"Purpose:","Each EPB standard has a (mandatory) Annex A with a template for national choices (between specific parts of the calculation procedure, assumptions, parameters, etc.)"]
[null,null,"Plus an Annex B with (informative) default choices. For the national implementation of each EPB standard, the template shall be used to prepare national or regional choices;"]
[null,null,"these choices are provided in National Annexes or National Datasheets."]
[null,null,"More information: see links below."]
[null,null,"This tool is intended to support all those who are involved in the preparation or understanding of the set of National Annexes / National Datasheets on these EPB standards"]
[]
[null,"Related documents:","[1] Dick van Dijk and Horn, Annet van der, EPB Center Guide how to fill in National Annexes or National Data Sheets, Nov. 4, 2019,"]
[null,null,"Extensive guide including examples of do's and dont's, available at EPB Center website"]
[]
[null,null,"[2] Dick van Dijk, U-CERT, D3.1 Development of a converged set of national data sheets (towards a U-CERT calculation methodology using the set of "]
[null,null,"     EPB standards), Updated version: August 27, 2021"]
[null,null,"Report on U-CERT task 3.1, (soon) available at U-CERT website"]
[]
[null,null,"[3] Dick van Dijk, U-CERT, D3.1 Annex 2, U-CERT converged set of national datasheets for the main EPB standards, August 27, 2021"]
[null,null,"Complete list of all 237 tables/choices of 10 selected EPB standards, with -for each choice- a proposal and explanation (including links to other choices); (soon) available at U-CERT website"]
[]
[null,null,"[4] Annet van der Horn, EPB Center, Model National Annexes to 10 selected EPB standards, September 2021 (under preparation)"]
[]
[null,"Disclaimer:","In addition to the general disclaimer at the INFO sheet:"]
[null,null,"The subdivision of the tables with choices in Annex A/B of the EPB standards "]
[null,null,"into categories/types is to some extent arbitrary"]
[null,null,"The subdivision is purely based on the judgement of experts on the selected EPB standards"]
[null,null,"The categorization of the tables with choices in Annex A/B of the EPB standards"]
[null,null,"is only intended as support to fill in or evaluate National Annexes or National Datasheets"]
[]
[null,"Main limitations:","- See disclaimer"]
[null,null,"- \"Only\" the main ten EPB standards for the calculation of the overall energy performance of buildings are covered"]
[]
[null,"Protection:","The sheets are protected against accidental changes of the data"]
[]
[null,"Why a macro?","A small macro is used to  facilitate sorting the standards and the categories"]
[]
[null,"Links:","https://epb.center/implementation/national-annexes/"]
[null,null,"https://u-certproject.eu/"]
[]
[]
[null,"Overview of the meaning of each sheet in this file"]
[null,"Sheet",null,"Description"]
[null,"INFO",null,"Common info for all EPB spreadsheets, including DISCLAIMER","Red tab colour (do not touch) for INFO, Explanation and History"]
[null,"Explanation",null,"Explanation on this spreadsheet"]
[null,"Annex A,B types",null,"Tabulated overview of all \"Annex A/B\" Tables in the 10 selected EPB standards with indication of the type"]
[null,"Statistics",null,"Statistical information"]
[]
[null,"History of this spreadsheet"]
[null,"Date","Developer","Description"]
[null,"2021-08-27","Dick van Dijk","First version for external distribution; see Disclaimer on sheet \"INFO\"!"]

{"sheet":"Annex A,B types","index":2,"n_rows":283,"n_cols":18,"rows_kept":283,"cut":false,"hidden":false,"merged":[]}
[null,null,null,"EPB Center & U-CERT-(WP3)","         See sheet Explanation (including disclaimer)"]
[null,{"$f":"+MAX(B6:B973)+4","v":283},null,null,"Table (number and subject)","LINKED CHOICES (future option)","Standard titles","Important factor for the calculated energy performance","Critical for calculation tool development","Less crucial detail for calculation methodology","Policy choice","Categorization","Post-processing","References to other (EPB) standards","Measured energy performance","Other","Brief explanation"]
[null,"OrderAll","OrderSt","EPB standard",null,null,"-","A","B","C","D","E","F","G","H","I"]
[null,null,null,null,null,"Order of sorting types \n( 0 = ignore;  higher = more dominant)",0,9,0,0,3,0,0,0,0,0]
[null,1,0,"EN ISO 52000-1",null,null,1]
[null,2,1,"EN ISO 52000-1","Table A/B.1 — References",null,null,null,null,null,null,null,null,1,null,null,"If one or more EPB standards are replaced by other references it can have serious impact on the methodology"]
[null,3,2,"EN ISO 52000-1","Table A/B.2 — Energy performance assessment types according to building category and application",null,null,null,null,null,1,1]
[null,4,3,"EN ISO 52000-1","Table A/B.3 — Object types",null,null,null,null,null,1,1]
[null,5,4,"EN ISO 52000-1","Table A/B.4 — Building categories",null,null,null,null,null,1,1]
[null,6,5,"EN ISO 52000-1","Table A/B.5 — Which building categories are included in EPB assessment",null,null,null,null,null,1,1]
[null,7,6,"EN ISO 52000-1","Table A/B.6 — Differentiation of space categories",null,null,1,1,null,1,1]
[null,8,7,"EN ISO 52000-1","Table A/B.7 — Space categories",null,null,1,null,null,1,1]
[null,9,8,"EN ISO 52000-1","Table A/B.8 — Application types",null,null,null,null,null,1,1]
[null,10,9,"EN ISO 52000-1","Table A/B.9 — EPB assessment types",null,null,null,null,null,null,1]
[null,11,10,"EN ISO 52000-1","Table A/B.10 — Combination services types",null,null,null,null,null,null,1]
[null,12,11,"EN ISO 52000-1","Table A/B.11 — Electricity use types",null,null,null,null,null,null,1]
[null,13,12,"EN ISO 52000-1","Table A/B.12 — Electricity generation types",null,null,null,null,null,null,1]
[null,14,13,"EN ISO 52000-1","Table A/B.13 — Gross calorific value of some common solid fuels",null,null,null,null,null,null,null,null,null,1]
[null,15,14,"EN ISO 52000-1","Table A/B.14 — Gross calorific value of some common liquid fuels",null,null,null,null,null,null,null,null,null,1]
[null,16,15,"EN ISO 52000-1","Table A/B.15 — Gross calorific values of some gaseous energy carriers",null,null,null,null,null,null,null,null,null,1]
[null,17,16,"EN ISO 52000-1","Table A/B.16 — Weighting factors (based on gross or net calorific value)",null,null,1,null,null,1]
[null,18,17,"EN ISO 52000-1","Table A/B.17 — kexp-factor",null,null,1,null,null,1]
[null,19,18,"EN ISO 52000-1","Table A/B.18 — Building services considered in the energy performance calculation",null,null,1,null,null,1]
[null,20,19,"EN ISO 52000-1","Table A/B.19 — Principle assumed presence of systems",null,null,1,1,null,1]
[null,21,20,"EN ISO 52000-1","Table A/B.20 — Specification of the useful floor area",null,null,1,null,null,1]
[null,22,21,"EN ISO 52000-1","Table A/B.21 — Type or types of metric for the building size",null,null,1,null,null,1]
[null,23,22,"EN ISO 52000-1","Table A/B.22 — Which space categories are contributing to the reference size",null,null,1,null,null,1]
[null,24,23,"EN ISO 52000-1","Table A/B.23 — Perimeter specification",null,null,1,null,null,1]
[null,25,24,"EN ISO 52000-1","Table A/B.24 — Perimeter choice",null,null,1,null,null,1]
[null,26,25,"EN ISO 52000-1","Table A/B.25 — Conversion factors for net to gross calorific values for energy carriers",null,null,null,null,null,null,null,null,null,1]
[null,27,26,"EN ISO 52000-1","Table A/B.26 — Overheads included in the primary energy and CO2 emission factors",null,null,null,null,null,1,null,null,null,null,1,"No impact. Only information."]
[null,28,27,"EN ISO 52000-1","Table A/B.27 — Basis for the energy performance of buildings ",null,null,1,null,null,1,null,null,null,null,null,"Total or non-renewable EP"]
[null,29,28,"EN ISO 52000-1","Table A/B.28 — Priority for generation system, export",null,null,null,null,1]
[null,30,29,"EN ISO 52000-1","Table A/B.29 — Subdivision rules",null,null,null,null,1,null,null,null,null,null,null,"Zoning"]
[null,31,30,"EN ISO 52000-1","Table A/B.30 — Energy flows taken into account in the building balance",null,null,1,null,null,1]
[null,32,31,"EN ISO 52000-1","Table A/B.31 — Electrical uses not satisfied by on-site electricity production",null,null,1,null,null,1,null,null,null,null,null,"Impact depends on PEF and kexp values"]
[null,33,32,"EN ISO 52000-1","Table A/B.32 — Matching factor of produced and used electricity",null,null,1,null,null,null,null,null,null,null,null,"Less relevant for hourly calculation"]
[null,34,99,"EN ISO 52000-1","= END ="]
[null,35,0,"EN ISO 52003-1",null,null,1,null,null,null,null,null,null,null,null,null,"For EN ISO 52003-1 in general: Choices could be critical for calc. method if additional (e.g. Intermediate or special) calculation results are needed"]
[null,36,1,"EN ISO 52003-1","Table A/B.1 — References",null,null,null,null,null,null,null,null,1]
[null,37,2,"EN ISO 52003-1","Table A/B.2 — Default choices with respect to the overall EPB requirements ",null,null,1,null,null,1,null,1,null,null,null,"Important factor if used for comparing against minimum EP requirement or benchmark."]
[null,38,3,"EN ISO 52003-1","Table A/B.3 — Numeric indicator used for the requirement on the total primary energy use ",null,null,1,null,null,1,null,1,null,null,null,"Important factor if used for comparing against minimum EP requirement or benchmark."]
[null,39,4,"EN ISO 52003-1","Table A/B.4 — Numeric indicator used for the requirement on the non-renewable primary energy use ",null,null,1,null,null,1,null,1,null,null,null,"Important factor if used for comparing against minimum EP requirement or benchmark."]
[null,40,5,"EN ISO 52003-1","Table A/B.5 — Numeric indicator used for the requirement on the renewable primary energy use ",null,null,1,null,null,1,null,1,null,null,null,"Important factor if used for comparing against minimum EP requirement or benchmark."]
[null,41,6,"EN ISO 52003-1","Table A/B.6 — Energy rating methods  ",null,null,1,null,null,1,null,1,null,null,null,"Rating scale and classes"]
[null,42,7,"EN ISO 52003-1","Table A/B.7 — Graphical representation of the rating ",null,null,null,null,null,1,null,1]
[null,43,99,"EN ISO 52003-1","= END ="]
[null,44,0,"EN ISO 52010-1",null,null,1]
[null,45,1,"EN ISO 52010-1","Table A/B.1 — References",null,null,null,null,null,null,null,null,1,null,null,"But empty => not applicable"]
[null,46,2,"EN ISO 52010-1","Table A/B.2 — Weather station and climatic data set",null,null,1,null,null,1]
[null,47,3,"EN ISO 52010-1","Table A/B.3 — Method to assess direct (beam) irradiance if not available from weather station",null,null,null,null,1]
[null,48,4,"EN ISO 52010-1","Table A/B.4 — Solar reflectivity of the ground",null,null,null,null,1]
[null,49,5,"EN ISO 52010-1","Table A/B.5 — Solar reflectivity of the ground; if fixed value",null,null,null,null,1]
[null,50,6,"EN ISO 52010-1","Table A/B.6 — Solar reflectivity of the ground; if dependent on ground conditions",null,null,null,null,1,null,null,null,null,null,null,"Not applicable in U-Cert, but in general it is!!"]
[null,51,7,"EN ISO 52010-1","Table A/B.7 — Choice between options and methods for calculation of shading by external objects",null,null,null,null,1]
[null,52,8,"EN ISO 52010-1","Table A/B.8 — Number of skyline segments, nsh;segm for input solar shading objects",null,null,null,null,1]
[null,53,9,"EN ISO 52010-1","Table A/B.9 — Choice between methods for calculation of illuminance",null,null,null,null,1]
[null,54,99,"EN ISO 52010-1","= END ="]
[null,55,0,"EN 16798-1",null,null,1,null,null,null,null,null,null,null,null,null,"In EN 16798-1 the choices are not only in Tables. Where a subclause contains choices and there is no Table to refer to, then the subclause itself is referenced"]
[null,56,1,"EN 16798-1","Table A/B.1 — Default categories for design of mechanical heated and cooled buildings",null,null,1,null,null,null,null,null,null,null,null,"Specification of four comfort categories with PMV and PPD limits"]
[null,57,2,"EN 16798-1","Table A/B.2 — Default design values of the indoor operative temperature in winter and summer for buildings with mechanical cooling systems",null,null,null,null,1,null,null,null,null,null,null," "," "]
[null,58,3,"EN 16798-1","Table A/B.3 — Local thermal discomfort design criteria",null,null,null,null,null,null,null,null,null,null,1,"Only for sizing of heating and cooling systems"]
[null,59,4,"EN 16798-1","Clause A/B.2.2 Default acceptable indoor temperatures for buildings without mechanical cooling systems",null,null,1,null,null,null,null,null,null,null,null,"Adaptive temperatures. important input to assess the 'summer' thermal comfort in buildings without mechanical cooling"]
[null,60,5,"EN 16798-1","Table A/B.4 — Indoor operative temperature correction (ΔΘo) applicable for buildings equipped with fans or personal systems providing building occupants with personal control over air speed at occupant level",null,null,null,null,1]
[null,61,6,"EN 16798-1","Table A/B.5 — Temperature ranges for hourly calculation of cooling and heating energy in four categories of indoor environment",null,null,1,null,null,null,null,null,null,null,null,"Specification of four comfort categories with opetrative temperature limits"]
[null,62,7,"EN 16798-1","Table A/B.6 — Design ventilation rates for sedentary, adults, non-adapted persons for diluting emissions (bio effluents) from people for different categories ",null,null,null,null,1]
[null,63,8,"EN 16798-1","Table A/B.7 — Design ventilation rates for diluting emissions from different type of buildings ",null,null,null,null,1]
[null,64,9,"EN 16798-1","Table A/B.8 — Example of default design ventilation air flow rates for a single-person office of 10 m2 in a low polluting building (un-adapted person)",null,null,null,null,1]
[null,65,10,"EN 16798-1","Table A/B.9 — Default design CO2 concentrations above outdoor concentration assuming a standard CO2 emission of 20 L/(h per person)",null,null,null,null,1]
[null,66,11,"EN 16798-1","Table A/B.10 — Default predefined design ventilation air flow rates for an office (un-adapted person)",null,null,null,null,1]
[null,67,12,"EN 16798-1","Clause A/B.3.1.5 Ventilation air flow rate during unoccupied periods",null,null,null,null,1]
[null,68,13,"EN 16798-1","Table A/B.11 — Criteria based on pre-defined supply ventilation air flow rates: Total ventilation (1), Supply air flow (2) and (3)",null,null,null,null,1]
[null,69,14,"EN 16798-1","Table A/B.12 — Design CO2 concentrations in occupied living rooms and bedrooms",null,null,null,null,1]
[null,70,15,"EN 16798-1","Table A/B.13 — Design air flow rates by room and building type (qroom)",null,null,null,null,1]
[null,71,16,"EN 16798-1","Table A/B.14 — Categories for predefined extract air flow rates",null,null,null,null,1]
[null,72,17,"EN 16798-1","Table A/B.15 — Default design opening areas for dwellings. Values for bedrooms and living rooms may be given per m2 floor area or as fixed values per room",null,null,null,null,null,null,null,null,null,null,1,"Only for sizing of ventilation system"]
[null,73,18,"EN 16798-1","Clause A/B.3.2.5 Design ventilation air flow rate during unoccupied periods",null,null,null,null,1]
[null,74,19,"EN 16798-1","Table A/B.16 — Example of recommended design criteria for the humidity in occupied spaces if humidification or dehumidification systems are installed",null,null,null,null,1]
[null,75,20,"EN 16798-1","Table A/B.17 —Criteria for the different building types",null,null,null,null,1]
[null,76,21,"EN 16798-1","Table A/B.18 — Examples of criteria for some buildings and spaces according to the EN 12464 series",null,null,null,null,1,null,null,null,null,null,null,"Illuminance criteria"]
[null,77,22,"EN 16798-1","Table A/B.19 — Daylight availability classification as a function of the daylight factor DCa,j of the raw building envelop opening and DSNA",null,null,null,null,1,null,null,null,null,null,null,"To be checked"]
[null,78,23,"EN 16798-1","Table A/B.20 — Examples of design equivalent continuous sound level, Leq, nT,A [dB(A)] for continuous sources",null,null,null,null,null,null,null,null,null,null,1,"Noise criteria"]
[null,79,24,"EN 16798-1","Table A/B.21 — WHO guideline values for indoor and outdoor air pollutants",null,null,null,null,null,null,null,null,null,null,1,"Only for sizing of ventilation system in case of specific indoor or outdoor air pollutants"]
[null,80,25,"EN 16798-1","Clause A/B.8 and Annex C: Occupants schedules for energy calculations ",null,null,1]
[null,81,99,"EN 16798-1","= END ="]
[null,82,0,"EN ISO 52016-1",null,null,1]
[null,83,1,"EN ISO 52016-1","Table A/B.1 — References",null,null,null,null,null,null,null,null,1]
[null,84,2,"EN ISO 52016-1","Table A/B.2 — Choice between hourly or monthly calculation method",null,null,1,1]
[null,85,3,"EN ISO 52016-1","Table A/B.3 — Thermal zoning rules",null,null,1]
[null,86,4,"EN ISO 52016-1","Table A/B.4 — Choice of method for thermally unconditioned zones",null,null,null,null,1]
[null,87,5,"EN ISO 52016-1","Table A/B.5 — Default contribution of ventilation in external construction of a thermally unconditioned zone",null,null,null,null,1]
[null,88,6,"EN ISO 52016-1","Table A/B.6 — Choice of spatial temperature averaging in residential buildings",null,null,null,null,1]
[null,89,7,"EN ISO 52016-1","Table A/B.7 — Choice between calculations with thermally coupled or uncoupled thermal zones",null,null,1,1]
[null,90,8,"EN ISO 52016-1","Table A/B.8 — Default thermal coupling properties in case of thermally coupled zones",null,null,null,null,1,null,null,null,null,null,null,"Probably not applicable, because of choice Table A/B.7"]
[null,91,9,"EN ISO 52016-1","Table A/B.9 — Factor for consideration of internal heat gains in design heat load calculation",null,null,null,null,null,null,null,null,null,null,1,"Not applicable"]
[null,92,10,"EN ISO 52016-1","Table A/B.10 — Alternative choices in modelling",null,null,1]
[null,93,11,"EN ISO 52016-1","Table A/B.11 — Convective fractions",null,null,null,null,1]
[null,94,12,"EN ISO 52016-1","Table A/B.12 — Specification of internal partitions",null,null,null,null,1]
[null,95,13,"EN ISO 52016-1","Table A/B.13 — Distribution of mass of opaque and ground floor elements",null,null,null,null,1]
[null,96,14,"EN ISO 52016-1","Table A/B.14 — Specific heat capacity of opaque and ground floor elements",null,null,null,null,1]
[null,97,15,"EN ISO 52016-1","Table A/B.15 — Solar absorption coefficient of external opaque surfaces",null,null,null,null,1]
[null,98,16,"EN ISO 52016-1","Table A/B.16 — Coefficient to limit assumed temperature in adjacent thermally unconditioned zone",null,null,null,null,1]
[null,99,17,"EN ISO 52016-1","Table A/B.17 — Specific heat capacity of air and furniture",null,null,null,null,1]
[null,100,18,"EN ISO 52016-1","Table A/B.18 — View factor to the sky",null,null,null,null,1]
[null,101,19,"EN ISO 52016-1","Table A/B.19 — Difference between external air temperature and sky temperature",null,null,null,null,1]
[null,102,20,"EN ISO 52016-1","Table A/B.20 — Choice of method for moisture absorption and desorption in materials",null,null,1,1]
[null,103,21,"EN ISO 52016-1","Table A/B.21 — Choice of glazing area or frame area fraction",null,null,null,null,1]
[null,104,22,"EN ISO 52016-1","Table A/B.22 — Factors related to the solar energy transmittance",null,null,null,null,1]
[null,105,23,"EN ISO 52016-1","Table A/B.23 — Rules for operation of shutters",null,null,null,null,1]
[null,106,24,"EN ISO 52016-1","Table A/B.24 — Rules for operation of solar shading devices",null,null,null,null,1]
[null,107,25,"EN ISO 52016-1","Table A/B.25  — Choices between options and methods for calculation of shading by external objects",null,null,1]
[null,108,26,"EN ISO 52016-1","Table A/B.26  — Number of skyline segments, nsh;segm for input solar shading objects",null,null,null,null,1]
[null,109,27,"EN ISO 52016-1","Table A/B.27 —Monthly ventilation heat transfer coefficient",null,null,null,null,null,null,null,null,null,null,1,"Only for monthly calculation method"]
[null,110,28,"EN ISO 52016-1","Table A/B.28 —Dynamics correction factor for ventilation",null,null,null,null,null,null,null,null,null,null,1,"Only for monthly calculation method"]
[null,111,29,"EN ISO 52016-1","Table A/B.29 — Solar absorption coefficient of external opaque surfaces",null,null,null,null,null,null,null,null,null,null,1,"Only for monthly calculation method"]
[null,112,30,"EN ISO 52016-1","Table A/B.30 — View factor to the sky",null,null,null,null,null,null,null,null,null,null,1,"Only for monthly calculation method"]
[null,113,31,"EN ISO 52016-1","Table A/B.31 — Difference between external air temperature and sky temperature",null,null,null,null,null,null,null,null,null,null,1,"Only for monthly calculation method"]
[null,114,32,"EN ISO 52016-1","Table A/B.32 — Choice between detailed or simple method to determine the internal effective heat capacity (monthly method)",null,null,null,null,null,null,null,null,null,null,1,"Only for monthly calculation method"]
[null,115,33,"EN ISO 52016-1","Table A/B.33 — Simple method to determine the internal effective heat capacity. Specification of the classes (monthly method)",null,null,null,null,null,null,null,null,null,null,1,"Only for monthly calculation method"]
[null,116,34,"EN ISO 52016-1","Table A/B.34 — Values of the reference numerical parameter aH,0 and the reference time constant τH,0 for the gain utilization factor",null,null,null,null,null,null,null,null,null,null,1,"Only for monthly calculation method"]
[null,117,35,"EN ISO 52016-1","Table A/B.35 — Values of the reference numerical parameter aC,0 and the reference time constant τC,0 for the loss utilization factor",null,null,null,null,null,null,null,null,null,null,1,"Only for monthly calculation method"]
[null,118,36,"EN ISO 52016-1","Table A/B.36 — Choice between methods A and B for heating intermittency ",null,null,null,null,null,null,null,null,null,null,1,"Only for monthly calculation method"]
[null,119,37,"EN ISO 52016-1","Table A/B.37 — Choice between methods A and B for cooling intermittency",null,null,null,null,null,null,null,null,null,null,1,"Only for monthly calculation method"]
[null,120,38,"EN ISO 52016-1","Table A/B.38 — Choice between methods A and B for overheating indicator",null,null,null,null,null,null,null,null,null,null,1,"Only for monthly calculation method"]
[null,121,39,"EN ISO 52016-1","Table A/B.39 — The monthly fraction of energy need for humidification",null,null,null,null,null,null,null,null,null,null,1,"Only for monthly calculation method"]
[null,122,40,"EN ISO 52016-1","Table A/B.40 — Efficiency of latent heat recovery",null,null,null,null,null,null,null,null,null,null,1,"Only for monthly calculation method"]
[null,123,41,"EN ISO 52016-1","Table A/B.41 — Annually accumulated amount of moisture to be supplied per kg dry air supply (monthly method)",null,null,null,null,null,null,null,null,null,null,1,"Only for monthly calculation method"]
[null,124,42,"EN ISO 52016-1","Table A/B.42 — Choice of glazing area or frame area fraction",null,null,null,null,null,null,null,null,null,null,1,"Only for monthly calculation method"]
[null,125,43,"EN ISO 52016-1","Table A/B.43 — Factors related to the solar energy transmittance",null,null,null,null,null,null,null,null,null,null,1,"Only for monthly calculation method"]
[null,126,44,"EN ISO 52016-1","Table A/B.44 — Movable shutter reduction factor, fsht;with, and movable solar shading reduction factor fsh;with",null,null,null,null,null,null,null,null,null,null,1,"Only for monthly calculation method"]
[null,127,45,"EN ISO 52016-1","Table A/B.45 — Choices between options and methods for calculation of shading by external objects",null,null,null,null,null,null,null,null,null,null,1,"Only for monthly calculation method"]
[null,128,46,"EN ISO 52016-1","Table A/B.46 — Parameters for monthly solar shading due to overhangs",null,null,null,null,null,null,null,null,null,null,1,"Only for monthly calculation method"]
[null,129,47,"EN ISO 52016-1","Table A/B.47 — Parameters for monthly solar shading due to fins",null,null,null,null,null,null,null,null,null,null,1,"Only for monthly calculation method"]
[null,130,48,"EN ISO 52016-1","Table A/B.48 — Parameters for monthly solar shading by obstacles; more detailed method",null,null,null,null,null,null,null,null,null,null,1,"Only for monthly calculation method"]
[null,131,99,"EN ISO 52016-1","= END ="]
[null,132,0,"EN ISO 52018-1",null,null,1,null,null,null,null,null,null,null,null,null,"For EN ISO 52018-1 in general: Choices could be critical for calc. method if additional (e.g. Intermediate or special) calculation results are needed"]
[null,133,1,"EN ISO 52018-1","Table A/B.1 — References",null,null,null,null,null,null,null,null,1]
[null,134,2,"EN ISO 52018-1","Table A/B.2 — Choices with respect to the mix of partial EPB requirements related to thermal energy balance and fabric features ",null,null,1,null,null,1,null,1,null,null,null,"Important factor if used for comparing against minimum EP requirement or benchmark."]
[null,135,3,"EN ISO 52018-1","Table A/B.3 — Numeric indicator used for the requirement on the summer thermal comfort",null,null,1,null,null,1,null,1,null,null,null,"Important factor in particular if EP is calculated on basis of actual (and possible undersized or absent) cooling system"]
[null,136,4,"EN ISO 52018-1","Table A/B.4 — Numeric indicator used for the requirement on the winter thermal comfort",null,null,1,null,null,1,null,1,null,null,null,"Important factor in particular if EP is calculated on basis of actual (and possible undersized or absent) cooling system. Attention: Table 4bis added for combined thermal comfort score"]
[null,137,5,"EN ISO 52018-1","Table A/B.5 — Numeric indicator used for the requirement on the energy “need” for heating",null,null,1,null,null,1,null,1,null,null,null,"Important factor if used for comparing against minimum EP requirement or benchmark."]
[null,138,6,"EN ISO 52018-1","Table A/B.6 — Numeric indicator used for the requirement on the energy “need” for cooling ",null,null,1,null,null,1,null,1,null,null,null,"Important factor if used for comparing against minimum EP requirement or benchmark."]
[null,139,7,"EN ISO 52018-1","Table A/B.7 — Numeric indicator used for the requirement on the combined energy “need” for heating and cooling (and possibly still other quantities) ",null,null,1,null,null,1,null,1,null,null,null,"Important factor if used for comparing against minimum EP requirement or benchmark."]
[null,140,8,"EN ISO 52018-1","Table A/B.8 — Numeric indicator used for the requirement on the overall thermal insulation of the thermal envelope ",null,null,1,null,null,1,null,1,null,null,null,"Important factor if used for comparing against minimum EP requirement or benchmark."]
[null,141,9,"EN ISO 52018-1","Table A/B.9 — Numeric indicator used for the requirement on the thermal insulation of individual elements of the thermal envelope",null,null,null,null,null,1,null,1]
[null,142,10,"EN ISO 52018-1","Table A/B.10 — Numeric indicator used for the requirement on the thermal bridges",null,null,null,null,null,1,null,1]
[null,143,11,"EN ISO 52018-1","Table A/B.11 — Numeric indicator used for the requirement on the window energy performance ",null,null,null,null,null,1,null,1]
[null,144,12,"EN ISO 52018-1","Table A/B.12 — Numeric indicator used for the requirement on the thermal envelope air tightness ",null,null,1,null,null,1,null,1,null,null,null,"Important factor if used for comparing against minimum EP requirement or benchmark. Also important because it requires air tightness assessment."]
[null,145,13,"EN ISO 52018-1","Table A/B.13 — Numeric indicator used for the requirement on the solar control ",null,null,1,null,null,1,null,1,null,null,null,"Important factor if used for comparing against minimum EP requirement or benchmark."]
[null,146,14,"EN ISO 52018-1","Table A/B.14 — Numeric indicator used for other requirements ",null,null,1,null,null,1,null,1,null,null,null,"Important factor if used for comparing against minimum EP requirement or benchmark."]
[null,147,99,"EN ISO 52018-1","= END ="]
[null,148,0,"draft ISO/FDIS 52032-1:2021",null,null,1,null,null,null,null,null,null,null,null,null,"Draft revision of EN 15316-3:2017"]
[null,149,1,"draft ISO/FDIS 52032-1:2021","Table A/B.1 — References",null,null,null,null,null,null,null,null,1]
[null,150,2,"draft ISO/FDIS 52032-1:2021","Table A/B.2 — Two-Pipe-System ",null,null,null,null,1]
[null,151,3,"draft ISO/FDIS 52032-1:2021","Table A/B.3 — One-Pipe-System ",null,null,null,null,1]
[null,152,4,"draft ISO/FDIS 52032-1:2021","Table A/B.4 — Maximum length Lmax ",null,null,null,null,1]
[null,153,5,"draft ISO/FDIS 52032-1:2021","Clause A/B.3.1.2, Boundary conditions",null,null,null,null,1]
[null,154,6,"draft ISO/FDIS 52032-1:2021","Table A/B.5 — Default values for calculation of thermal losses from DHW circulation loop and DHW distribution pipes",null,null,null,null,1]
[null,155,7,"draft ISO/FDIS 52032-1:2021","Table A/B.6 — Maximum length Lmax ",null,null,null,null,1]
[null,156,8,"draft ISO/FDIS 52032-1:2021","Clause A/B.3.2.2, Boundary conditions",null,null,null,null,1]
[null,157,9,"draft ISO/FDIS 52032-1:2021","Table A/B.7 — Typical values of linear thermal transmittance of pipes for new and existing buildings",null,null,null,null,1]
[null,158,10,"draft ISO/FDIS 52032-1:2021","Table A/B.8 — Outer total surface coefficient of heat transfer ha ",null,null,null,null,1]
[null,159,11,"draft ISO/FDIS 52032-1:2021","Table A/B.9 — Constants CP1 and CP2 for space heating distribution pumps ",null,null,null,null,1]
[null,160,12,"draft ISO/FDIS 52032-1:2021","Table A/B.10 — Constants CP1 and CP2 for space cooling distribution pumps ",null,null,null,null,1]
[null,161,13,"draft ISO/FDIS 52032-1:2021","Table A/B.11 — Constants CP1 and CP2 for DHW distribution circulation pumps ",null,null,null,null,1]
[null,162,14,"draft ISO/FDIS 52032-1:2021","Table A/B.12 — Pressure loss per length",null,null,null,null,1]
[null,163,15,"draft ISO/FDIS 52032-1:2021","Table A/B.13 — Resistance ratio ",null,null,null,null,1]
[null,164,16,"draft ISO/FDIS 52032-1:2021","Table A/B.14 — Additional resistances ",null,null,null,null,1]
[null,165,17,"draft ISO/FDIS 52032-1:2021","Table A/B.15 — Factors for hydraulic balance ",null,null,null,null,1]
[null,166,18,"draft ISO/FDIS 52032-1:2021","Table A/B.16 — Factor for recoverable auxiliary energy ",null,null,null,null,1]
[null,167,19,"draft ISO/FDIS 52032-1:2021","Table A/B.17 — Energy efficiency index EEI for real pumps ",null,null,null,null,1]
[null,168,99,"draft ISO/FDIS 52032-1:2021","= END ="]
[null,169,0,"EN 15316-4-2",null,null,1]
[null,170,1,"EN 15316-4-2","Table A/B.1   — Identifiers for Heat pump type- HP type",null,null,null,null,null,null,null,null,null,null,1,"No impact? Only default example?!"]
[null,171,2,"EN 15316-4-2","Table A/B.2 — Identifiers for heat pump use HP_USE",null,null,null,null,null,null,null,null,null,null,1,"No impact? Only default example?!"]
[null,172,3,"EN 15316-4-2","Table A/B.3  — Identifiers for fuel type",null,null,null,null,null,null,null,null,null,null,1,"No impact? Only default example?!"]
[null,173,4,"EN 15316-4-2","Table A/B.4  — Identifiers for CE-marking",null,null,null,null,null,null,null,null,null,null,1,"No impact? Only default example?!"]
[null,174,5,"EN 15316-4-2","Table A/B.5  — Identifiers for back up fuel type",null,null,null,null,null,null,null,null,null,null,1,"No impact? Only default example?!"]
[null,175,6,"EN 15316-4-2","Table A/B.6 – Heat pump technical data",null,null,null,null,null,null,null,null,null,null,1,"No impact? Only default example?!"]
[null,176,7,"EN 15316-4-2","Table A/B.7 – Air-Water heat pumps - Weighting factors for calculation of the COP ",null,null,null,null,1]
[null,177,8,"EN 15316-4-2","Table A/B.8 – Air-Water heat pumps - Weighting factors for calculation of the thermal capacity at full load",null,null,null,null,1]
[null,178,9,"EN 15316-4-2","Table A/B.9— Calculation factor for auxiliary energy ",null,null,null,null,1]
[null,179,10,"EN 15316-4-2","Table A/B.10 — fLR for on-off absorption heat pumps",null,null,null,null,1]
[null,180,11,"EN 15316-4-2","Table A/B.11 — fLR for modulating absorption heat pumps",null,null,null,null,1]
[null,181,12,"EN 15316-4-2","Table A/B.11bis — Identifiers for heat pump inertia and associated emitters",null,null,null,null,1]
[null,182,13,"EN 15316-4-2","Table A/B.12 - Factors for energy recovery",null,null,null,null,1]
[null,183,14,"EN 15316-4-2","Table A/B.13  — Identifiers for control type",null,null,null,null,null,null,null,null,null,null,1,"No impact. Only typology"]
[null,184,15,"EN 15316-4-2","Table A/B.14 — Identifiers for design temperatures",null,null,null,null,null,null,null,null,null,null,1,"Nothing to choose!"]
[null,185,16,"EN 15316-4-2","Table A/B.15 — Identifiers for heat pump localization",null,null,null,null,null,null,null,null,null,null,1,"No impact. Only  example!"]
[null,186,17,"EN 15316-4-2","Table A/B.16— Priority levels for sub-systems ",null,null,null,null,null,null,null,null,null,null,1,"No impact. Only  example!"]
[null,187,18,"EN 15316-4-2","Table A/B.17 - Operating conditions data list",null,null,null,null,null,null,null,null,null,null,1,"No impact. Only  example!"]
[null,188,19,"EN 15316-4-2","Table A/B.18A - Structure of weather data applicable to monthly or annual calculation",null,null,null,null,null,null,null,null,null,null,1,"Table A.18 differs from Table B.18. No impact? Just an example!"]
[null,189,20,"EN 15316-4-2","Table A/B.18B - Example of weather data applicable to annual calculation",null,null,null,null,null,null,null,null,null,null,1,"Table A.18 differs from Table B.18. No impact? Just an example!"]
[null,190,99,"EN 15316-4-2","= END ="]
[null,191,0,"draft prEN 15316-4-2:2021",null,null,1,null,null,null,null,null,null,null,null,null,"Draft revision of EN 15316-4-2:2017"]
[null,192,1,"prEN 15316-4-2:2021","Table A/B.1 — References ",null,null,null,null,null,null,null,null,1]
[null,193,2,"prEN 15316-4-2:2021","Table A/B.2 — Identifiers for heat pump energy carrier type",null,null,null,null,1]
[null,194,3,"prEN 15316-4-2:2021","Table A/B.3 — Identifiers for back-up energy carrier  type",null,null,null,null,1]
[null,195,4,"prEN 15316-4-2:2021","Table A/B.4 — Identifiers for source energy type",null,null,null,null,1]
[null,196,5,"prEN 15316-4-2:2021","Table A/B.5 — Default values of fgen;aux;el ",null,null,null,null,1]
[null,197,6,"prEN 15316-4-2:2021","Table A/B.6 — Default value of LRcont;min",null,null,null,null,1]
[null,198,7,"prEN 15316-4-2:2021","Table A/B.7 — Default value of ηbu",null,null,null,null,1]
[null,199,8,"prEN 15316-4-2:2021","Table A/B.8 — Default value of Cd",null,null,null,null,1]
[null,200,9,"prEN 15316-4-2:2021","Table A/B.9 — Default value of the base source temperatures",null,null,null,null,1]
[null,201,10,"prEN 15316-4-2:2021","Table A/B.10 — Default value of the base sink temperatures",null,null,null,null,1]
[null,202,11,"prEN 15316-4-2:2021","Table A/B.11 — Default value of fLR,cont,min,net",null,null,null,null,1]
[null,203,12,"prEN 15316-4-2:2021","Table A/B.12 — Default value of τeq",null,null,null,null,1]
[null,204,13,"prEN 15316-4-2:2021","Table A/B.13 — Default value of LRopt, COPinc;opt and COPinc;min",null,null,null,null,1]
[null,205,14,"prEN 15316-4-2:2021","Table A/B.14 — fCOP;LR for absorption heat pumps",null,null,null,null,1]
[null,206,15,"prEN 15316-4-2:2021","Table A/B.15 — ΔTe (θbiv) for air to air and air to water",null,null,null,null,1]
[null,207,16,"prEN 15316-4-2:2021","Table A/B.16 — Maximum evaporating temperature, θgen;in",null,null,null,null,1]
[null,208,17,"prEN 15316-4-2:2021","Table A/B.17 —  ∆Tc (θbiv) air to air ∆Tcw(θbiv) air to water",null,null,null,null,1]
[null,209,18,"prEN 15316-4-2:2021","Table A/B.18 — Minimum ∆Tcmin",null,null,null,null,1]
[null,210,19,"prEN 15316-4-2:2021","Table A/B.19 — Indoor air temperature (dry bulb), θi;ci",null,null,null,null,1]
[null,211,20,"prEN 15316-4-2:2021","Table A/B.20 — Minimum leaving water temperature, θlwmin",null,null,null,null,1]
[null,212,21,"prEN 15316-4-2:2021","Table A/B.21 — Indoor air temperature (dry bulb), θi;ci",null,null,null,null,1]
[null,213,22,"prEN 15316-4-2:2021","Table A/B.22 — Performance mapping for air to air and air to water units for the reference heating seasons",null,null,null,null,null,null,null,null,null,null,1,"No impact. Only  template/example!"]
[null,214,23,"prEN 15316-4-2:2021","Table A/B.23 — Performance mapping for air-to-air and air to water units for calculating the capacity ratio",null,null,null,null,null,null,null,null,null,null,1,"No impact. Only  template/example!"]
[null,215,24,"prEN 15316-4-2:2021","Table A/B.24 — Default values of the time constant of distribution and emitters",null,null,null,null,1]
[null,216,25,"prEN 15316-4-2:2021","Table A/B.25 — Correction coefficients of power output for [type of heat pump]",null,null,null,null,1]
[null,217,26,"prEN 15316-4-2:2021","Table A/B.26 — Correction coefficients of COP for [type of heat pump]",null,null,null,null,1]
[null,218,27,"prEN 15316-4-2:2021","Clause A/B.6.1.5 Maximum extrapolation",null,null,null,null,1]
[null,219,28,"prEN 15316-4-2:2021","Table A/B.27 — Default parameters for equation (4) Ground heat exchanger, horizontal, water or brine",null,null,null,null,1]
[null,220,29,"prEN 15316-4-2:2021","Table A/B.28 — Default parameters for equation (5) Ground heat exchanger, vertical, water or brine",null,null,null,null,1]
[null,221,30,"prEN 15316-4-2:2021","Table A/B.29 — Default parameters for equation (6) Ground heat exchanger, direct expansion",null,null,null,null,1]
[null,222,31,"prEN 15316-4-2:2021","Table A/B.30 — Default parameters for equation (7) Ground water",null,null,null,null,1]
[null,223,32,"prEN 15316-4-2:2021","Table A/B.31 — Default parameters for equation (8) Surface water",null,null,null,null,1]
[null,224,33,"prEN 15316-4-2:2021","Table A/B.32 — Source temperature calculation path",null,null,1,null,null,null,null,null,null,null,null,"The choice affects the method (and corresponding set of input data)"]
[null,225,34,"prEN 15316-4-2:2021","Table A/B.33 — Sink temperature calculation path",null,null,1,null,null,null,null,null,null,null,null,"The choice affects the method (and corresponding set of input data)"]
[null,226,35,"prEN 15316-4-2:2021","Table A/B.34 — Calculation path for full load heat power output",null,null,1,null,null,null,null,null,null,null,null,"The choice affects the method (and corresponding set of input data)"]
[null,227,36,"prEN 15316-4-2:2021","Table A/B.35 — Calculation path for energy input and auxiliary energy",null,null,1,null,null,null,null,null,null,null,null,"The choice affects the method (and corresponding set of input data)"]
[null,228,37,"prEN 15316-4-2:2021","Table A/B.36 — Calculation path for part load correction factor of COP (path A)",null,null,1,null,null,null,null,null,null,null,null,"The choice affects the method (and corresponding set of input data)"]
[null,229,38,"prEN 15316-4-2:2021","Table A/B.37 — Default priority list (sequence)",null,null,null,null,1]
[null,230,39,"prEN 15316-4-2:2021","Table A/B.38 — Time allocation criterion",null,null,null,null,1]
[null,231,99,"prEN 15316-4-2:2021","= END ="]
[null,232,0,"EN 16798-7",null,null,1,null,null,null,null,null,null,null,null,null,"In EN 16798-7 the choices are not only in Tables. Where a subclause contains choices and there is no Table to refer to, then the subclause itself is referenced"]
[null,233,1,"EN 16798-7","Table A/B.1 —References",null,null,null,null,null,null,null,null,1]
[null,234,2,"EN 16798-7","Clause A/B.3.2.1 Discharge coefficient for vents, air terminal devices, windows",null,null,null,null,1]
[null,235,3,"EN 16798-7","Clause A/B.3.2.2 Airflow exponent for vents, air terminal devices, windows",null,null,null,null,1]
[null,236,4,"EN 16798-7","Table A/B.2 — Data for appliance system factor",null,null,null,null,1,null,null,null,null,null,null,"B.3.2.3 Combustion air flows factors"]
[null,237,5,"EN 16798-7","Table A/B.3 — Data for fuel flow factor",null,null,null,null,1]
[null,238,6,"EN 16798-7","Table A/B.4 —  Values for fctrl",null,null,null,null,1,null,null,null,null,null,null,"B.3.2.4 Mechanical ventilation"]
[null,239,7,"EN 16798-7","Table A/B.5 —  Values for fsys",null,null,null,null,1]
[null,240,8,"EN 16798-7","Table A/B.6 — Identifiers for SHIELD_CLASS",null,null,null,null,1,null,null,null,null,null,null,"B.3.3 System design data / B.3.3.2 Exposure to wind"]
[null,241,9,"EN 16798-7","Table A/B.7 — Dimensionless wind pressures coefficients",null,null,null,null,1,null,null,null,null,null,null,"B.3.3.3 Pressure coefficients associated to an air flow path"]
[null,242,10,"EN 16798-7","Table A/B.8 — Dimensionless wind pressures for ventilation zone that cannot be cross-ventilated (fcros = 0)",null,null,null,null,1]
[null,243,11,"EN 16798-7","Clause A/B.3.3.4 Difference of wind pressure coefficients",null,null,null,null,1,null,null,null,null,null,null,"B.3.3.4 Difference of wind pressure coefficients"]
[null,244,12,"EN 16798-7","Clause A/B.3.3.5 Pressure coefficient of the cowl at roof height",null,null,null,null,1]
[null,245,13,"EN 16798-7","Table A/B.9 — Examples of DCcowl;height  values",null,null,null,null,1,null,null,null,null,null,null,"B.3.3.6 Correction coefficient for accounting for height of cowl above roof level"]
[null,246,14,"EN 16798-7","Clause A/B.3.3.7 Ventilation effectiveness ",null,null,1,null,null,null,null,null,null,null,null,"From fully mixed to displacement ventilation"]
[null,247,15,"EN 16798-7","Clause A/B.3.3.8 Airing factor",null,null,null,null,1]
[null,248,16,"EN 16798-7","Table A/B.10 — Cross-ventilation factor",null,null,null,null,1,null,null,null,null,null,null,"B.3.3.9 Cross-ventilation factor"]
[null,249,17,"EN 16798-7","Clause A/B.3.3.10 Number of window divisions",null,null,null,null,1]
[null,250,18,"EN 16798-7","Clause A/B.3.3.11 Stack effect in passive and hybrid duct",null,null,null,null,1]
[null,251,19,"EN 16798-7","Clause A/B.3.3.12 Distribution of vents & Table A/B.11 — Distribution of vents",null,null,null,null,1]
[null,252,20,"EN 16798-7","Clause A/B.3.3.13 Reference pressure for the envelope airtightness index",null,null,null,null,1]
[null,253,21,"EN 16798-7","Clause A/B.3.3.14 Flow exponent through leaks",null,null,null,null,1]
[null,254,22,"EN 16798-7","Clause A/B.3.3.15 Leakage coefficient of the ventilation zone",null,null,null,null,1]
[null,255,23,"EN 16798-7","Clause A/B.3.3.16 Envelope leakage distribution & Table A/B.12 — Envelope leakage distribution",null,null,null,null,1]
[null,256,24,"EN 16798-7","Clause A/B.3.3.17 Typical internal doorway area",null,null,null,null,1]
[null,257,25,"EN 16798-7","Clause A/B.3.4.1 Maximum wind speed for cross-ventilation calculation",null,null,null,null,1]
[null,258,26,"EN 16798-7","Clause A/B.3.4.2 Wind speed correction factors & Table A/B.13 — Correction factor Crgh;10;site ",null,null,null,null,1]
[null,259,27,"EN 16798-7","Table A/B.14 — Identifiers for VENT_SYS_OP",null,null,null,null,null,null,null,null,null,null,1,"Typology"]
[null,260,99,"EN 16798-7","= END ="]
[null,261,0,"EN 16798-5-1",null,null,1]
[null,262,1,"EN 16798-5-1","Table A/B.1 —References",null,null,null,null,null,null,null,null,1]
[null,263,2,"EN 16798-5-1","Table A/B.2 — Product description data",null,null,null,null,null,null,null,null,null,null,1,"No choice, only  example!"]
[null,264,3,"EN 16798-5-1","Table A/B.3 — Duct tightness class and leakage coefficient",null,null,null,null,1]
[null,265,4,"EN 16798-5-1","Table A/B.4 —AHU tightness class and leakage coefficients",null,null,null,null,1]
[null,266,5,"EN 16798-5-1","Table A/B.5 — Heat recovery leakage and outdoor air factors",null,null,null,null,1]
[null,267,6,"EN 16798-5-1","Table A/B.6 — Nominal temperature efficiencies and values for the constants",null,null,null,null,1]
[null,268,7,"EN 16798-5-1","Table A/B.7 — Humidity recovery efficiency and correction factors",null,null,null,null,1]
[null,269,8,"EN 16798-5-1","Clause A/B.4.6: Value for adiabatic cooling humidifier efficiency",null,null,null,null,1]
[null,270,9,"EN 16798-5-1","Table A/B.8 — Cooling and heating coil calculation constants",null,null,null,null,1]
[null,271,10,"EN 16798-5-1","Table A/B.9 — Air handling unit related default values",null,null,null,null,1]
[null,272,11,"EN 16798-5-1","Table A/B.10 — Specific humidification pump energy power consumption for different humidifier types and control strategies",null,null,null,null,1]
[null,273,12,"EN 16798-5-1","Table A/B.11 — Process design data choices",null,null,null,null,null,null,null,null,null,null,1,"No choice, only  example!"]
[null,274,13,"EN 16798-5-1","Table A/B.12 — Fan motor heat recovery factors",null,null,null,null,1]
[null,275,14,"EN 16798-5-1","Table A/B.13 — Quantitative process design data",null,null,1,null,null,null,null,null,null,null,null,"Default pressure differences"]
[null,276,15,"EN 16798-5-1","Table A/B.14 — Temperature limit values for frost protection",null,null,null,null,1]
[null,277,16,"EN 16798-5-1","Table A/B.15 — Process control options",null,null,null,null,1]
[null,278,17,"EN 16798-5-1","Table A/B.16 — Heat recovery control options",null,null,null,null,1]
[null,279,99,"EN 16798-5-1","= END ="]

{"sheet":"Statistics","index":3,"n_rows":31,"n_cols":20,"rows_kept":31,"cut":false,"hidden":false,"merged":[]}
[]
[]
[]
[null,"Standard","Title","Important factor for the calculated energy performance",null,"Critical for calculation tool development","Policy choice","Categorization","Post-processing",null,"Total number of choices"]
[null,null,null,null,null,"If Important factor for calculated EP:"]
[null,"EN ISO 52000-1","EN ISO 52000-1:2017, Energy performance of buildings — Overarching EPB assessment — Part 1: General framework and procedures",15,null,2,14,2,0,null,32]
[null,"EN ISO 52003-1","ISO 52003-1:2017, Energy performance of buildings — Indicators, requirements, ratings and certificates — Part 1: General aspects and application to the overall energy performance",5,null,0,5,0,5,null,7]
[null,"EN ISO 52010-1","EN ISO 52010-1:2017, Energy performance of buildings — External climatic conditions — Part 1: Conversion of climatic data for energy calculations",1,null,0,1,0,0,null,9]
[null,"EN 16798-1","EN 16798-1:2019, Energy performance of buildings — Ventilation of buildings  — Part 1: Indoor environmental input parameters for design and assessment of energy performance of buildings addressing indoor air quality, thermal environment, lighting and acoustics (Module M1–6)",4,null,0,0,0,0,null,25]
[null,"EN ISO 52016-1","EN ISO 52016-1:2017, Energy performance of buildings — Energy needs for heating and cooling, internal temperatures and sensible and latent heat loads — Part 1: Calculation procedures",6,null,3,0,0,0,null,48]
[null,"EN ISO 52018-1","EN ISO 52018-1:2017, Energy performance of buildings — Indicators for partial EPB requirements related to thermal energy balance and fabric features — Part 1: Overview of options",10,null,0,10,0,10,null,14]
[null,"ISO/FDIS 52032-1 (draft, Feb. 2021)","Energy performance of buildings — Energy requirements and efficiencies of heating, cooling and DHW distribution systems — Part 1: Calculation procedures",0,null,0,0,0,0,null,19]
[null,"prEN 15316-4-2 (draft, March 2021)","Energy performance of buildings — Method for calculation of system energy requirements and system efficiencies — Part 4-2: Space heating generation systems, heat pump systems, Module M3-8-2, M8-8-2",5,null,0,0,0,0,null,39]
[null,"EN 16798-7","EN 16798-7, Energy performance of buildings – Ventilation for buildings – Part 7: Calculation methods for the determination of air flow rates in buildings including infiltration (Module M5–5)",1,null,0,0,0,0,null,27]
[null,"EN 16798-5-1","EN 16798-5-1, Energy performance of buildings – Ventilation for buildings – Part 5–1: Calculation methods for energy requirements of ventilation and air conditioning systems (Modules M5–6, M5–8, M6–5, M6–8, M7–5, M7–8) – Method 1: Distribution and generation",1,null,0,0,0,0,null,17]
[null,"Total",null,{"$f":"SUM(D6:D15)","v":48},null,{"$f":"SUM(F6:F15)","v":5},30,2,15,null,237]
[]
[]
[null,null,null,null,null,null,null,null,null,null,null,null,null,null,null,"for graph:",null,null,"for graph:"]
[null,null,null,null,null,null,null,null,null,null,null,null,null,null,null,null,null,null,"NOTE: more than one choice possible ==> numbers don't add up"]
[null,null,null,null,null,null,null,null,null,null,null,null,null,null,null,{"$f":"+B6","v":"EN ISO 52000-1"},{"$f":"+D6","v":15},null,{"$f":"+F4","v":"Critical for calculation tool development"},{"$f":"+F16","v":5}]
[null,"The number of Important choices per standard",null,null,null,"Other categories that apply to the tables with important choices for the calculated EP",null,null,null,null,null,null,null,null,null,{"$f":"+B7","v":"EN ISO 52003-1"},5,null,{"$f":"+G4","v":"Policy choice"},{"$f":"+G16","v":30}]
[null,null,null,null,null,null,"(for some: more than one choice possible, so the numbers don't add up)",null,null,null,null,null,null,null,null,"EN ISO 52010-1",1,null,{"$f":"+H4","v":"Categorization"},{"$f":"+H16","v":2}]
[null,null,null,null,null,null,null,null,null,null,null,null,null,null,null,"EN 16798-1",4,null,{"$f":"+I4","v":"Post-processing"},{"$f":"+I16","v":15}]
[null,null,null,null,null,null,null,null,null,null,null,null,null,null,null,"EN ISO 52016-1",6,null,"Total",{"$f":"SUM(T21:T24)","v":52}]
[null,null,null,null,null,null,null,null,null,null,null,null,null,null,null,"EN ISO 52018-1",10]
[null,null,null,null,null,null,null,null,null,null,null,null,null,null,null,"ISO/FDIS 52032-1 (draft, Feb. 2021)",0]
[null,null,null,null,null,null,null,null,null,null,null,null,null,null,null,{"$f":"+B13","v":"prEN 15316-4-2 (draft, March 2021)"},5]
[null,null,null,null,null,null,null,null,null,null,null,null,null,null,null,{"$f":"+B14","v":"EN 16798-7"},1]
[null,null,null,null,null,null,null,null,null,null,null,null,null,null,null,{"$f":"+B15","v":"EN 16798-5-1"},1]
[null,null,null,null,null,null,null,null,null,null,null,null,null,null,null,{"$f":"+B16","v":"Total"},{"$f":"SUM(Q21:Q30)","v":48}]